bitfinex/quotes_ETHUSD_20240902
["timestamp","ask_amount","ask_price","bid_price","bid_amount"]
[1725292253987,3.95798,2526.6,2526.2,6.3844]
[1725292254388,3.95742,2526.9,2526.3,0.0791617]
[1725292254723,3.95742,2526.9,2526.4,3.95809]
[1725292257228,3.95796,2526.6,2526.2,29.5359]
[1725292257430,3.9582,2526.4,2526.2,27.11]
[1725292260918,3.95835,2526.3,2526.2,27.11]
[1725292261852,3.95835,2526.3,2525.7,7.31]
[1725292261853,3.9588,2526.1,2525.7,7.31]
[1725292262059,3.95888,2526.0,2525.6,19.8]
[1725292262921,3.95853,2526.2,2525.7,3.95915]
[1725292263122,7.91712,2526.2,2525.8,2.3271]
[1725292263642,7.91712,2526.2,2525.9,0.04836795]
[1725292263848,3.95853,2526.2,2525.9,0.04836795]
[1725292267230,3.9583,2526.4,2525.9,0.76101062]
[1725292267445,3.9583,2526.4,2525.9,0.12754382]
[1725292267646,3.95797,2526.6,2526.0,3.95875]
[1725292267861,7.91599,2526.6,2526.2,2.3802]
[1725292268049,3.95797,2526.6,2526.2,2.3802]
[1725292268253,3.95796,2526.6,2526.3,0.04831178]
[1725292271084,3.95736,2527.0,2526.3,0.81495467]
[1725292271290,2.3644,2527.3,2526.6,3.95776]
[1725292271291,3.95711,2527.1,2526.6,3.95776]
[1725292271500,2.3644,2527.3,2526.8,3.95754]
[1725292271501,3.95687,2527.3,2526.8,3.95754]
[1725292271780,3.95687,2527.3,2526.8,7.91504]
[1725292271989,3.95687,2527.3,2526.9,0.04813892]
[1725292272188,10.27752,2527.5,2526.9,4.00547892]
[1725292272373,3.95666,2527.4,2526.9,4.00547892]
[1725292272580,6.32091,2527.5,2526.9,4.00547892]
[1725292272581,3.95679,2527.3,2526.9,0.04813892]
[1725292272742,3.95695,2527.2,2526.9,0.04813892]
[1725292273082,3.95695,2527.2,2526.7,6.2464]
[1725292273250,3.95695,2527.2,2527.0,0.04811011]
[1725292273453,3.95695,2527.2,2526.7,6.2464]
[1725292273665,0.632091,2527.4,2526.7,6.2464]
[1725292273666,3.95677,2527.4,2526.8,3.95756]
[1725292273871,3.95677,2527.4,2526.9,3.9574]
[1725292274069,3.9568,2527.3,2526.8,4.0050481]
[1725292274385,3.9568,2527.3,2526.9,0.04689051]
[1725292276089,3.9562,2527.7,2527.0,2.3715]
[1725292276587,3.9562,2527.7,2527.1,0.04680337]
[1725292276885,3.95591,2527.9,2527.3,3.95669]
[1725292277184,3.95591,2527.9,2527.1,19.84680337]
[1725292277185,3.95634,2527.6,2527.4,0.04671698]
[1725292277491,3.95634,2527.6,2526.9,27.92236354]
[1725292277492,3.95681,2527.3,2526.9,27.11]
[1725292277642,3.95647,2527.5,2527.0,3.95719]
[1725292277985,7.91302,2527.5,2527.0,3.95719]
[1725292278347,7.91305,2527.5,2527.0,3.95719]
[1725292278544,7.91305,2527.5,2527.1,0.04671476]
[1725292278864,3.95647,2527.5,2527.1,0.04671476]
[1725292281220,6.40167,2527.7,2527.1,0.94539704]
[1725292281358,6.40165,2527.7,2527.2,3.95686]
[1725292281565,6.40165,2527.7,2527.3,0.0466424]
[1725292281566,3.95617,2527.7,2527.3,0.0466424]
[1725292281793,3.95617,2527.7,2527.2,3.95686]
[1725292282063,3.95617,2527.7,2527.4,0.0466136]
[1725292282262,3.95617,2527.7,2527.2,3.95686]
[1725292282907,1.038753,2527.7,2527.3,0.0466424]
[1725292283072,2.4754,2527.7,2527.3,0.0466424]
[1725292283278,3.95663,2527.4,2526.9,3.95732]
[1725292283480,7.91336,2527.4,2526.9,3.95732]
[1725292283869,3.95663,2527.4,2526.9,3.95732]
[1725292284105,7.9134,2527.4,2526.9,3.95732]
[1725292284481,3.95649,2527.5,2527.0,7.91441]
[1725292284803,3.95618,2527.7,2527.2,3.9568]
[1725292284986,7.91244,2527.7,2527.3,0.4035938]
[1725292285185,3.95632,2527.6,2527.2,3.95692]
[1725292285595,3.95617,2527.7,2527.2,3.95692]
[1725292285759,3.95617,2527.7,2527.3,3.95678]
[1725292286587,3.95594,2527.9,2527.3,3.95678]
[1725292286588,3.95594,2527.9,2527.5,3.95645]
[1725292288218,7.91188,2527.9,2527.4,6.43611]
[1725292288724,3.95634,2527.6,2527.2,7.31]
[1725292288879,3.95634,2527.6,2527.2,11.26693]
[1725292291597,3.95634,2527.6,2527.2,7.31]
[1725292291997,3.95577,2528.0,2527.5,6.35107]
[1725292293735,3.95587,2527.9,2527.6,0.04617211]
[1725292294105,3.95587,2527.9,2527.4,3.95661]
[1725292294307,3.956,2527.8,2527.7,0.04602522]
[1725292294524,3.956,2527.8,2527.4,3.95661]
[1725292294707,3.956,2527.8,2527.7,0.04603998]
[1725292294909,10.29327,2527.9,2527.3,6.35137]
[1725292295092,3.956,2527.8,2527.7,0.04603998]
[1725292295294,3.956,2527.8,2527.3,9.36222]
[1725292295550,3.956,2527.8,2527.7,0.04603998]
[1725292295730,3.956,2527.8,2527.3,6.35137]
[1725292296228,3.95617,2527.7,2527.4,0.04612635]
[1725292296628,10.29327,2527.9,2527.4,0.04612635]
[1725292297256,3.95632,2527.6,2527.4,0.04612635]
[1725292297768,3.95616,2527.7,2527.4,0.04612635]
[1725292297948,3.95602,2527.8,2527.4,1.41688998]
[1725292298118,3.95608,2527.8,2527.4,1.41688998]
[1725292298312,3.95608,2527.8,2527.4,5.37350998]
[1725292300758,3.95621,2527.7,2527.4,1.41688998]
[1725292301075,3.95621,2527.7,2527.4,0.04612635]
[1725292303447,7.91251,2527.7,2527.4,0.04612635]
[1725292303852,3.95621,2527.7,2527.4,0.04612635]
[1725292304057,7.91245,2527.7,2527.4,0.04612635]
[1725292305378,7.91247,2527.7,2527.4,0.04612635]
[1725292305579,7.91251,2527.7,2527.4,0.04612635]
[1725292305749,3.95647,2527.5,2527.4,0.04612635]
[1725292306282,3.95647,2527.5,2527.4,0.04591962]
[1725292306739,3.95647,2527.5,2527.2,7.31]
[1725292306941,3.95647,2527.5,2527.4,0.045927]
[1725292307179,3.95647,2527.5,2527.3,0.0459558]
[1725292307384,3.95647,2527.5,2527.4,0.045927]
[1725292307743,3.95647,2527.5,2527.1,2.4307]
[1725292307942,3.95647,2527.5,2527.4,0.045927]
[1725292308139,3.95647,2527.5,2527.1,2.4307]
[1725292308342,3.95647,2527.5,2527.4,0.04591962]
[1725292308579,0.791279,2527.5,2527.1,2.4307]
[1725292308788,3.95699,2527.2,2527.0,7.31]
[1725292308958,3.95699,2527.2,2526.8,5.3937]
[1725292308959,3.9571,2527.1,2526.8,5.3937]
[1725292309577,3.95699,2527.2,2526.8,5.3937]
[1725292310967,7.91408,2527.2,2526.8,5.3937]
[1725292311169,3.95699,2527.2,2526.8,5.3937]
[1725292312987,3.95717,2527.1,2526.8,5.3937]
[1725292313371,3.95717,2527.1,2526.8,2.3937]
[1725292313573,3.95727,2527.0,2526.8,2.3937]
[1725292313890,3.95727,2527.0,2526.7,3.0]
[1725292315063,7.91407,2527.2,2526.7,3.0]
[1725292315265,3.95699,2527.2,2526.7,6.95772]
[1725292315489,3.95717,2527.1,2526.7,3.0]
[1725292316010,3.95726,2527.0,2526.6,7.31]
[1725292316304,6.43413,2527.1,2526.6,7.31]
[1725292316511,3.95734,2527.0,2526.6,7.31]
[1725292316672,6.43413,2527.1,2526.6,7.31]
[1725292316874,3.95742,2526.9,2526.5,19.8]
[1725292318235,3.95742,2526.9,2526.5,23.75801]
[1725292319861,3.95691,2527.3,2526.8,3.9575]
[1725292320125,3.95702,2527.2,2526.8,3.9575]
[1725292320702,3.95713,2527.1,2526.6,6.43977]
[1725292320897,3.95713,2527.1,2526.6,13.417421]
[1725292321201,3.95665,2527.4,2526.9,3.95728]
[1725292321381,3.95665,2527.4,2527.0,2.4819]
[1725292321732,3.9564,2527.6,2527.1,3.95708]
[1725292322021,7.91281,2527.6,2527.1,4.600998]
[1725292322200,7.9128,2527.6,2527.1,4.600998]
[1725292322539,3.95655,2527.5,2527.1,0.643918]
[1725292322821,3.95655,2527.5,2527.0,6.43916]
[1725292323216,3.9564,2527.6,2527.1,3.95708]
[1725292323401,7.9128,2527.6,2527.2,0.04694441]
[1725292324020,3.95651,2527.5,2527.2,0.04694441]
[1725292324221,3.95664,2527.4,2527.2,0.04694441]
[1725292324434,7.017144,2527.4,2526.8,19.8]
[1725292324589,3.95687,2527.3,2526.9,0.04680191]
[1725292325216,3.95726,2527.0,2526.9,0.04680191]
[1725292325425,3.95726,2527.0,2526.7,7.31]
[1725292325808,7.9146,2527.0,2526.8,0.04683072]
[1725292326023,3.95726,2527.0,2526.7,7.31]
[1725292326232,3.95726,2527.0,2526.8,0.04683072]
[1725292326390,3.95726,2527.0,2526.7,7.31]
[1725292326590,3.95726,2527.0,2526.8,0.04683072]
[1725292326878,3.95726,2527.0,2526.7,9.074403]
[1725292327130,3.95726,2527.0,2526.8,0.04683072]
[1725292327491,3.95726,2527.0,2526.7,9.074403]
[1725292327708,3.95726,2527.0,2526.8,0.04683072]
[1725292328089,3.95726,2527.0,2526.7,9.074403]
[1725292328289,3.95726,2527.0,2526.8,0.04683072]
[1725292328633,3.95726,2527.0,2526.9,0.04680191]
[1725292328823,3.95726,2527.0,2526.7,9.074403]
[1725292329008,3.95726,2527.0,2526.8,0.04683072]
[1725292329209,3.95726,2527.0,2526.7,9.074403]
[1725292329418,3.95726,2527.0,2526.8,0.04683072]
[1725292329624,3.95726,2527.0,2526.7,7.31]
[1725292329824,3.95726,2527.0,2526.8,0.04683072]
[1725292330141,3.95726,2527.0,2526.7,7.31]
[1725292330353,3.95726,2527.0,2526.9,0.04680191]
[1725292330546,3.95726,2527.0,2526.8,0.04683072]
[1725292330715,3.95726,2527.0,2526.9,0.04680191]
[1725292331120,3.95746,2526.9,2526.5,6.37623]
[1725292331450,3.95746,2526.9,2526.6,3.0]
[1725292331819,3.9576,2526.8,2526.6,3.0]
[1725292332021,3.9576,2526.8,2526.5,5.4182]
[1725292332950,3.95742,2526.9,2526.5,9.37622]
[1725292333251,3.95742,2526.9,2526.5,6.37622]
[1725292333450,3.95742,2526.9,2526.2,25.95309]
[1725292333451,3.95789,2526.6,2526.2,25.95309]
[1725292333624,6.22953,2526.9,2526.1,19.8]
[1725292333820,3.95867,2526.1,2525.9,7.31]
[1725292334051,3.95845,2526.3,2525.9,7.31]
[1725292335347,3.95845,2526.3,2525.9,11.32493556]
[1725292335655,7.91688,2526.3,2525.9,11.32493556]
[1725292335811,3.9586,2526.2,2525.9,11.32493556]
[1725292336012,3.9586,2526.2,2525.9,7.31]
[1725292336238,3.95868,2526.1,2525.9,7.31]
[1725292336421,7.91743,2526.1,2525.9,7.31]
[1725292336648,3.95882,2526.0,2525.9,7.31]
[1725292337015,7.91745,2526.1,2525.8,19.8]
[1725292337216,3.95868,2526.1,2525.8,19.8]
[1725292338010,6.37377,2526.5,2525.6,5.4253]
[1725292338011,3.95911,2525.9,2525.6,2.4253]
[1725292338520,3.95911,2525.9,2525.7,0.04705913]
[1725292339616,3.95911,2525.9,2525.5,7.31]
[1725292339823,7.91817,2525.9,2525.8,0.0470303]
[1725292340033,8.943629,2525.9,2525.3,2.83874144]
[1725292340321,3.95942,2525.7,2525.4,0.04714563]
[1725292340525,3.9596,2525.6,2525.4,0.04714563]
[1725292340688,3.95961,2525.5,2525.4,0.04714563]
[1725292340879,3.95994,2525.3,2525.1,19.8]
[1725292341083,3.95994,2525.3,2525.2,0.04720331]
[1725292341084,3.96005,2525.3,2525.2,0.04720331]
[1725292341286,3.96005,2525.3,2524.8,9.5696]
[1725292341485,3.96013,2525.2,2524.9,0.04810992]
[1725292341722,3.96005,2525.3,2524.9,0.04810992]
[1725292342034,3.96005,2525.3,2524.9,3.38596291]
[1725292342624,2.2941,2525.4,2524.9,3.38596291]
[1725292342834,3.95977,2525.4,2524.9,5.79116291]
[1725292345735,3.95977,2525.4,2524.9,2.45330992]
[1725292348028,3.95992,2525.3,2524.9,2.45330992]
[1725292348944,2.3237,2525.2,2524.9,0.04810992]
[1725292349151,3.96033,2525.1,2524.9,0.04810992]
[1725292349304,2.952062,2525.2,2524.9,0.04810992]
[1725292349501,6.912152,2525.2,2524.9,0.04810992]
[1725292350214,3.96024,2525.1,2524.9,0.04810992]
[1725292351309,3.96024,2525.1,2524.7,19.8]
[1725292351611,3.96047,2525.0,2524.8,0.04973484]
[1725292352274,3.96055,2524.9,2524.8,0.04973484]
[1725292353067,7.9211,2524.9,2524.8,0.04973484]
[1725292354055,3.96055,2524.9,2524.8,0.04973484]
[1725292354866,3.96015,2525.2,2524.8,2.42493484]
[1725292355068,7.92032,2525.2,2524.8,2.42493484]
[1725292355254,3.96015,2525.2,2524.8,2.42493484]
[1725292355428,7.92034,2525.2,2524.8,2.42493484]
[1725292355626,3.96015,2525.2,2524.8,2.42493484]
[1725292356479,3.96036,2525.1,2524.8,0.04973484]
[1725292356772,3.96036,2525.1,2524.6,2.2624]
[1725292356978,4.601805,2525.2,2524.9,0.04880665]
[1725292357272,3.96036,2525.1,2524.6,2.2624]
[1725292357569,3.96036,2525.1,2524.7,0.04886436]
[1725292358171,3.9604,2525.0,2524.7,0.04886436]
[1725292358574,3.96023,2525.1,2524.7,0.04886436]
[1725292360529,3.9607,2524.8,2524.7,0.04886436]
[1725292360751,3.96088,2524.7,2524.3,2.3318]
[1725292361145,7.92183,2524.7,2524.3,2.3318]
[1725292361545,3.96109,2524.6,2524.3,2.3318]
[1725292361876,3.96106,2524.6,2524.3,2.3318]
[1725292364876,3.96088,2524.7,2524.3,2.3318]
[1725292368482,3.96088,2524.7,2524.4,0.04896569]
[1725292369075,7.92151,2524.8,2524.4,0.04896569]
[1725292369280,6.27882,2525.3,2524.4,0.74216704]
[1725292369525,6.27882,2525.3,2524.4,0.82138304]
[1725292370124,6.27882,2525.3,2524.4,0.74216704]
[1725292370284,1.05114677,2525.2,2524.4,0.74216704]
[1725292370685,3.96057,2524.9,2524.4,4.70346704]
[1725292372018,7.92121,2524.9,2524.4,4.70346704]
[1725292372230,3.96072,2524.8,2524.4,0.74216704]
[1725292372431,3.96072,2524.8,2524.4,0.04896569]
[1725292373838,3.96087,2524.7,2524.4,0.04896569]
[1725292375801,3.96118,2524.5,2524.4,0.04896569]
[1725292376117,3.96146,2524.4,2524.2,7.31]
[1725292376323,3.96149,2524.3,2524.2,7.31]
[1725292376552,3.96149,2524.3,2524.0,22.1284]
[1725292376553,3.96202,2524.0,2523.8,7.31]
[1725292376844,7.92407,2524.0,2523.7,2.3284]
[1725292376997,3.96202,2524.0,2523.7,2.3284]
[1725292380761,3.96226,2523.9,2523.6,19.8]
[1725292380916,3.96252,2523.7,2523.4,7.31]
[1725292381122,3.96262,2523.6,2523.4,7.31]
[1725292381623,3.96262,2523.6,2523.3,22.2104]
[1725292381624,3.9629,2523.4,2523.3,19.8]
[1725292381845,3.9629,2523.4,2523.0,9.6319]
[1725292382055,3.9629,2523.4,2523.0,12.65365176]
[1725292382934,2.4457,2523.6,2522.8,2.3693]
[1725292383148,3.96309,2523.3,2522.8,3.82321576]
[1725292383548,3.96309,2523.3,2522.9,0.04315549]
[1725292385991,3.96322,2523.2,2522.9,0.04315549]
[1725292386197,3.96303,2523.4,2522.9,4.00684549]
[1725292386488,3.96303,2523.4,2522.9,4.78988162]
[1725292387751,3.96302,2523.4,2522.9,0.04315549]
[1725292388008,3.96319,2523.3,2522.9,0.04315549]
[1725292388301,3.96324,2523.2,2522.9,0.04315549]
[1725292389804,2.3021,2523.1,2522.9,0.04315549]
[1725292389988,3.96338,2523.1,2522.9,0.04315549]
[1725292390188,3.96338,2523.1,2522.6,3.96412]
[1725292390395,3.96338,2523.1,2523.0,0.04388112]
[1725292390573,3.96338,2523.1,2522.6,3.0]
[1725292390779,3.96338,2523.1,2523.0,0.04388112]
[1725292391111,3.96324,2523.2,2523.0,0.04392553]
[1725292391292,3.96324,2523.2,2522.7,6.24608]
[1725292391607,3.96324,2523.2,2523.1,0.04400765]
[1725292391906,3.96338,2523.1,2522.7,2.2821]
[1725292393405,3.96323,2523.2,2522.7,6.24609]
[1725292394418,3.96323,2523.2,2522.7,6.24603]
[1725292394622,3.96323,2523.2,2522.7,7.567053]
[1725292394930,7.92625,2523.3,2522.7,7.566973]
[1725292395102,3.96324,2523.2,2522.7,7.566973]
[1725292395581,3.96324,2523.2,2522.7,11.61017293]
[1725292395780,3.96324,2523.2,2522.7,7.64624293]
[1725292397390,3.96324,2523.2,2522.8,3.96384]
[1725292397600,3.96324,2523.2,2522.7,11.530883]
[1725292397787,3.96324,2523.2,2522.7,7.566973]
[1725292397988,3.96324,2523.2,2522.7,11.530903]
[1725292398528,3.9629,2523.4,2522.8,4.0087673]
[1725292398699,4.6493914,2523.4,2522.8,4.0087673]
[1725292399223,3.9629,2523.4,2522.9,4.04287995]
[1725292399410,3.96275,2523.5,2523.0,6.39392]
[1725292399612,3.96275,2523.5,2523.0,6.4388221]
[1725292400337,3.96275,2523.5,2523.0,7.4870113]
[1725292400903,2.4726,2523.8,2523.0,3.5234913]
[1725292401143,2.4726,2523.8,2523.0,2.4753021]
[1725292401442,3.96254,2523.7,2523.2,3.96314]
[1725292401967,3.96254,2523.7,2523.3,0.04471922]
[1725292402128,3.96254,2523.7,2523.2,3.96314]
[1725292402324,3.96254,2523.7,2523.4,0.04469034]
[1725292402526,3.96254,2523.7,2523.2,8.565604]
[1725292402527,3.96244,2523.7,2523.5,2.3959]
[1725292402755,3.96206,2524.0,2523.5,2.44048005]
[1725292403070,3.96214,2523.9,2523.5,2.44048005]
[1725292403269,7.92437,2523.9,2523.5,2.44048005]
[1725292403566,3.96214,2523.9,2523.5,2.44048005]
[1725292406033,3.96199,2524.0,2523.5,6.40322005]
[1725292407048,3.96212,2523.9,2523.5,6.40322005]
[1725292408577,7.92432,2523.9,2523.5,2.44048005]
[1725292408772,3.96212,2523.9,2523.5,2.44048005]
[1725292410792,2.2991,2524.4,2523.6,4.04170761]
[1725292410994,3.96157,2524.3,2523.9,2.2858]
[1725292411302,3.9617,2524.2,2523.9,2.2858]
[1725292411456,3.9617,2524.2,2524.0,0.0437845]
[1725292415402,3.9618,2524.1,2524.0,0.0437845]
[1725292415612,15.125546,2524.1,2524.0,0.0437845]
[1725292416082,3.96275,2523.5,2523.1,6.29847]
[1725292416408,3.96275,2523.5,2523.2,0.04367524]
[1725292418416,3.96298,2523.4,2523.2,0.04367524]
[1725292418762,3.96306,2523.3,2522.9,13.57982]
[1725292418964,3.96306,2523.3,2523.0,3.0]
[1725292419266,3.96327,2523.2,2522.9,2.3062]
[1725292419466,3.9634,2523.1,2522.7,29.4162]
[1725292419966,3.9634,2523.1,2522.7,33.3802]
[1725292422599,3.9634,2523.1,2522.7,37.39513556]
[1725292423162,3.9634,2523.1,2522.7,10.28513556]
[1725292423872,7.92627,2523.3,2522.7,10.28513556]
[1725292424079,3.96306,2523.3,2522.8,3.96384]
[1725292424291,3.96306,2523.3,2522.8,5.38873756]
[1725292425085,3.96306,2523.3,2522.9,3.96366]
[1725292425294,3.9627,2523.6,2523.0,6.29471965]
[1725292425626,3.9627,2523.6,2523.1,4.59274197]
[1725292425775,3.9627,2523.6,2523.1,3.96327]
[1725292426185,3.96275,2523.5,2523.1,3.96327]
[1725292426380,3.96261,2523.6,2523.1,3.96327]
[1725292427185,3.96249,2523.7,2523.3,3.96304]
[1725292427692,3.96249,2523.7,2523.1,4.981222]
[1725292427693,7.92504,2523.7,2523.2,3.96321]
[1725292428085,3.9626,2523.6,2523.2,3.96321]
[1725292428583,3.9626,2523.6,2523.3,0.04434179]
[1725292428780,3.96249,2523.7,2523.2,3.96321]
[1725292428991,7.92504,2523.7,2523.4,0.04431291]
[1725292429316,3.9626,2523.6,2523.5,0.04419524]
[1725292429481,3.9626,2523.6,2523.2,3.96321]
[1725292429925,3.9626,2523.6,2523.3,0.04425301]
[1725292430120,3.9626,2523.6,2523.2,3.96321]
[1725292430431,3.9626,2523.6,2523.4,0.04422412]
[1725292430601,3.9626,2523.6,2523.3,0.04425301]
[1725292430798,3.9626,2523.6,2523.1,27.11]
[1725292430799,3.96282,2523.5,2523.1,27.11]
[1725292431172,3.96307,2523.3,2523.1,27.11]
[1725292431640,3.96292,2523.4,2523.1,27.11]
[1725292432044,3.96306,2523.3,2523.1,27.11]
[1725292433440,3.96292,2523.4,2523.1,27.11]
[1725292435118,3.96292,2523.4,2523.0,3.96351]
[1725292435319,3.96292,2523.4,2523.0,6.37446076]
[1725292438850,3.96275,2523.5,2523.0,6.37437076]
[1725292439156,3.96275,2523.5,2523.0,10.33780076]
[1725292439655,3.96275,2523.5,2523.1,3.96335]
[1725292440356,3.96239,2523.8,2523.3,3.963]
[1725292440505,3.96252,2523.7,2523.2,6.30478]
[1725292440709,3.96252,2523.7,2522.2,6.85642743]
[1725292440710,3.96329,2523.2,2522.8,39.49]
[1725292440935,3.96339,2523.1,2522.8,39.49]
[1725292441249,3.96339,2523.1,2522.7,6.96389]
[1725292441456,3.96339,2523.1,2522.8,3.0]
[1725292441656,3.9637,2522.9,2522.6,19.8]
[1725292441869,3.9637,2522.9,2522.5,11.2742]
[1725292441870,3.9637,2522.9,2522.5,3.9642]
[1725292442057,3.9637,2522.9,2522.6,3.0]
[1725292443283,3.9637,2522.9,2522.3,31.07456]
[1725292443498,3.9637,2522.9,2522.3,35.08949556]
[1725292443668,3.9637,2522.9,2522.4,0.04302313]
[1725292443869,3.964,2522.7,2522.4,0.04302313]
[1725292444054,3.96425,2522.6,2522.4,0.04302313]
[1725292444253,3.96402,2522.7,2522.4,0.04302313]
[1725292444772,3.96424,2522.6,2522.4,0.04302313]
[1725292446762,3.96402,2522.7,2522.4,3.99632544]
[1725292447188,3.96402,2522.7,2522.4,0.04302313]
[1725292447396,3.96402,2522.7,2522.2,23.76478]
[1725292447597,3.96402,2522.7,2522.3,0.04344431]
[1725292448351,3.96351,2523.1,2522.4,2.3337]
[1725292448552,3.96376,2522.9,2522.4,6.3415154]
[1725292448793,3.96376,2522.9,2522.4,8.96363602]
[1725292448991,3.96376,2522.9,2522.4,12.92803602]
[1725292449197,3.96376,2522.9,2522.4,8.96363602]
[1725292449585,3.96332,2523.2,2522.7,3.96392]
[1725292449902,3.96323,2523.2,2522.8,0.07926895]
[1725292450104,3.96323,2523.2,2522.8,0.12307938]
[1725292450289,7.92602,2523.4,2522.9,6.278]
[1725292450458,3.963,2523.4,2522.9,6.278]
[1725292450658,3.963,2523.4,2523.0,0.04375264]
[1725292451007,3.96267,2523.6,2523.0,4.08653567]
[1725292451188,3.96267,2523.6,2523.1,3.96335]
[1725292451363,3.96278,2523.5,2523.0,5.18674782]
[1725292452489,3.96293,2523.4,2523.0,5.18674782]
[1725292452688,3.96293,2523.4,2523.0,0.12301567]
[1725292452915,7.92593,2523.4,2523.0,0.12301567]
[1725292453093,6.33731,2523.4,2523.0,0.04375264]
[1725292453402,3.96324,2523.2,2522.8,19.8]
[1725292453608,3.96348,2523.1,2522.5,0.8963636]
[1725292453903,3.96348,2523.1,2522.6,3.96407]
[1725292454560,3.96347,2523.1,2522.6,3.96407]
[1725292454983,3.96322,2523.2,2522.7,6.45869]
[1725292455365,3.96322,2523.2,2522.2,3.96475]
[1725292455366,2.3706,2522.0,2521.8,5.65e-06]
[1725292455708,0.23706,2521.9,2521.6,0.07932328]
[1725292455907,3.96403,2522.7,2522.0,3.96499]
[1725292456076,3.96403,2522.7,2521.9,3.81654678]
[1725292456077,3.96403,2522.7,2522.1,4.04419161]
[1725292456462,3.96391,2522.8,2522.2,3.96477]
[1725292456663,10.25795,2523.1,2522.4,3.96446]
[1725292456890,0.633731,2523.4,2522.2,3.22199616]
[1725292456891,3.96397,2522.8,2522.5,0.07927683]
[1725292457113,3.96397,2522.8,2522.2,3.22199616]
[1725292457114,3.96397,2522.8,2522.2,2.4211]
[1725292457276,3.96401,2522.7,2522.2,3.259693]
[1725292457523,3.96443,2522.5,2522.2,2.4211]
[1725292457726,3.96443,2522.5,2521.9,3.96514]
[1725292457727,3.96443,2522.5,2521.9,6.31454]
[1725292457934,3.96419,2522.6,2522.0,0.631454]
[1725292458137,7.92844,2522.6,2522.0,7.596464]
[1725292458338,3.96419,2522.6,2522.0,7.596464]
[1725292458955,7.92845,2522.6,2522.0,7.596464]
[1725292459254,3.96419,2522.6,2522.1,1.3911004]
[1725292459438,7.92846,2522.6,2522.1,1.3911004]
[1725292459626,3.96419,2522.6,2522.1,1.3911004]
[1725292459949,3.96427,2522.6,2522.1,1.3911004]
[1725292460152,3.96455,2522.4,2522.0,3.0]
[1725292460321,3.96486,2522.2,2521.9,2.3494]
[1725292460529,3.96469,2522.3,2521.9,6.36433556]
[1725292460753,3.96469,2522.3,2522.0,3.0]
[1725292463624,3.9645,2522.4,2522.0,3.0]
[1725292463827,3.96412,2522.7,2522.1,4.04423268]
[1725292464068,3.96429,2522.6,2522.1,4.04423268]
[1725292464230,3.96429,2522.6,2522.1,3.96494]
[1725292464432,3.96429,2522.6,2522.2,0.637229]
[1725292464863,3.9638,2522.9,2522.3,4.04388504]
[1725292465063,3.96386,2522.8,2522.5,2.3458]
[1725292465245,3.96386,2522.8,2522.5,2.42507822]
[1725292465445,3.96386,2522.8,2522.5,2.3458]
[1725292466941,3.96369,2522.9,2522.5,2.3458]
[1725292467649,3.96386,2522.8,2522.5,2.3458]
[1725292467975,3.96358,2523.0,2522.5,6.38938704]
[1725292468189,3.96358,2523.0,2522.5,7.02040604]
[1725292468478,7.92693,2523.1,2522.6,3.96414]
[1725292468674,7.92693,2523.1,2522.6,7.12187521]
[1725292468860,3.96344,2523.1,2522.6,3.15773521]
[1725292469029,3.96353,2523.0,2522.5,2.3458]
[1725292469229,3.96338,2523.1,2522.5,5.3458]
[1725292469429,3.96338,2523.1,2522.6,5.07079465]
[1725292469832,3.96338,2523.1,2522.6,4.991524]
[1725292470573,3.96338,2523.1,2522.7,0.07927067]
[1725292470733,3.9632,2523.3,2522.7,9.36586747]
[1725292471071,3.96308,2523.3,2522.8,4.04310477]
[1725292471444,3.9633,2523.2,2522.9,2.4568]
[1725292472161,3.96327,2523.2,2522.9,2.4568]
[1725292472584,3.96345,2523.1,2522.6,2.3607]
[1725292472786,3.96364,2523.0,2522.6,6.293191]
[1725292473157,3.96345,2523.1,2522.7,0.07926972]
[1725292473566,7.92697,2523.1,2522.7,0.07926972]
[1725292473779,3.96345,2523.1,2522.7,0.07926972]
[1725292473981,3.96316,2523.3,2522.7,4.04323972]
[1725292474191,3.96327,2523.2,2522.8,0.07926663]
[1725292474392,3.96316,2523.3,2522.8,0.07926663]
[1725292474393,7.92633,2523.3,2522.8,0.07926663]
[1725292474600,7.92633,2523.3,2522.8,2.46399222]
[1725292474806,3.96325,2523.2,2522.8,2.46399222]
[1725292474969,3.96325,2523.2,2522.8,2.38472559]
[1725292475491,3.96316,2523.3,2522.8,6.34844559]
[1725292475694,3.96316,2523.3,2522.8,2.46398936]
[1725292475895,3.96316,2523.3,2522.8,6.42781936]
[1725292476332,3.9625,2523.7,2523.0,2.4588]
[1725292476538,3.96244,2523.7,2523.2,7.9263]
[1725292476829,3.96244,2523.7,2523.3,0.07924915]
[1725292477537,3.96228,2523.8,2523.3,0.07924915]
[1725292477735,7.92441,2523.9,2523.3,0.07924915]
[1725292477901,3.9622,2523.9,2523.4,6.37489]
[1725292478307,3.9622,2523.9,2523.5,0.07924571]
[1725292478900,6.24081,2524.1,2523.5,3.96268]
[1725292479105,3.96191,2524.1,2523.5,3.96268]
[1725292479433,5.02190585,2524.1,2523.5,3.96268]
[1725292479726,9.26829431,2524.1,2523.2,7.31]
[1725292479887,3.96228,2523.8,2523.2,7.31]
[1725292480105,3.96254,2523.7,2523.2,7.31]
[1725292482992,3.96259,2523.6,2523.2,7.31]
[1725292483435,3.96292,2523.4,2523.2,7.31]
[1725292484512,3.96306,2523.3,2523.2,7.31]
[1725292485543,3.96292,2523.4,2523.2,7.31]
[1725292485704,3.96292,2523.4,2523.1,19.8]
[1725292485908,7.92594,2523.4,2523.1,19.8]
[1725292486134,3.96292,2523.4,2523.1,19.8]
[1725292488351,3.96276,2523.5,2523.1,19.8]